bitfinex/quotes_SOLUSD_20220208
["timestamp","ask_amount","ask_price","bid_price","bid_amount"]
[1644286829510,57.67564791,117.94,117.81,40.9644521]
[1644286829708,44.94464791,117.94,117.81,40.9644521]
[1644286829911,44.94464791,117.94,117.81,58.32166207]
[1644286831011,44.94464791,117.94,117.81,64.32166207]
[1644286832112,59.5404,117.96,117.81,64.32166207]
[1644286832312,65.5404,117.96,117.81,64.32166207]
[1644286833014,44.57442686,117.95,117.81,64.32166207]
[1644286834015,57.30382686,117.95,117.81,64.32166207]
[1644286836315,57.30382686,117.95,117.81,80.55520148]
[1644286838119,63.30382686,117.95,117.81,80.55520148]
[1644286839120,57.30382686,117.95,117.81,80.55520148]
[1644286839619,63.30382686,117.95,117.81,80.55520148]
[1644286839819,57.30382686,117.95,117.81,80.55520148]
[1644286840019,63.30382686,117.95,117.81,80.55520148]
[1644286840219,57.55382686,117.95,117.81,80.55520148]
[1644286841222,63.55382686,117.95,117.81,74.55520148]
[1644286841621,0.04022996,117.94,117.81,74.55520148]
[1644286843322,0.04022996,117.94,117.81,80.55520148]
[1644286843526,0.04022996,117.95,117.82,7.98240881]
[1644286843725,0.04022996,117.95,117.86,12.7243]
[1644286843924,0.04022996,117.99,117.87,12.25]
[1644286844128,0.04022996,117.95,117.88,12.25]
[1644286844326,0.04022996,117.95,117.88,12.5]
[1644286844524,0.04022996,117.99,117.88,12.5]
[1644286844928,1.24206511,117.99,117.88,12.5]
[1644286845128,40.67371521,117.98,117.88,12.5]
[1644286846437,40.92371521,117.98,117.88,12.5]
[1644286847637,42.12555036,117.98,117.88,12.5]
[1644286848236,1.20183515,117.97,117.88,12.5]
[1644286848436,45.13342478,117.96,117.88,12.5]
[1644286849153,1.20183515,117.95,117.88,12.5]
[1644286850256,1.20183515,117.93,117.88,12.5]
[1644286852961,1.20183515,117.93,117.88,25.2236]
[1644286853160,1.20183515,117.93,117.88,27.15733407]
[1644286853360,1.20183515,117.94,117.88,27.15733407]
[1644286853764,1.20183515,117.94,117.89,12.96059153]
[1644286854061,1.20183515,117.93,117.9,12.25]
[1644286854261,3.515e-05,117.94,117.9,12.5]
[1644286854462,3.515e-05,117.94,117.91,0.07330252]
[1644286854663,2.36961945,117.98,117.92,12.25]
[1644286854863,2.36961945,117.98,117.92,12.5]
[1644286855463,2.36961945,117.99,117.92,26.21458987]
[1644286855664,2.36961945,117.99,117.92,32.21458987]
[1644286855865,4.77444032,117.99,117.92,32.21458987]
[1644286856268,4.77444032,117.99,117.92,18.5]
[1644286856665,4.77444032,117.99,117.92,31.2194]
[1644286858168,4.77444032,117.99,117.93,1.11854399]
[1644286858366,4.77444032,117.99,117.93,12.5]
[1644286859268,2.40482087,117.99,117.93,25.2189]
[1644286859466,2.40482087,117.99,117.93,38.63423429]
[1644286859667,2.36961945,118.0,117.93,38.63423429]
[1644286859867,2.40984941,118.02,117.93,46.56796836]
[1644286860071,2.36961945,118.02,117.93,46.56796836]
[1644286860470,43.2548171,118.01,117.93,46.56796836]
[1644286860869,2.40984941,118.02,117.93,46.56796836]
[1644286861070,4.81345453,118.03,117.93,231.36498367]
[1644286861272,4.77322457,118.03,117.94,153.14]
[1644286861472,4.81345453,118.03,117.96,12.7135]
[1644286861673,4.77322457,118.03,117.97,12.25]
[1644286862171,49.69282072,118.04,117.97,12.5]
[1644286862570,49.69282072,118.04,117.97,31.2142]
[1644286862971,49.69282072,118.04,117.97,30.9642]
[1644286863171,49.69282072,118.04,117.94,48.9685]
[1644286863371,4.51644802,118.03,117.94,67.2185]
[1644286863574,2.36961945,118.02,117.94,67.2185]
[1644286863773,2.36961945,118.02,117.94,61.4685]
[1644286863973,36.26364501,118.01,117.94,61.4685]
[1644286864675,36.26364501,118.01,117.95,12.7163]
[1644286865276,36.26364501,118.01,117.94,61.2185]
[1644286865476,38.63326446,118.01,117.94,61.2185]
[1644286865676,36.26364501,118.01,117.94,61.2185]
[1644286866688,36.26364501,118.01,117.94,73.9366]
[1644286866879,36.26364501,118.01,117.94,74.1866]
[1644286867779,38.63326446,118.01,117.94,74.1866]
[1644286868379,38.63326446,118.01,117.94,73.9366]
[1644286870282,36.26364501,118.01,117.94,74.1866]
[1644286870683,38.63326446,118.01,117.94,74.1866]
[1644286872385,36.26364501,118.01,117.91,42.3937]
[1644286872585,2.14682857,118.0,117.86,153.14]
[1644286872887,8.61993945,117.99,117.84,12.7278]
[1644286873085,2.36961945,117.98,117.78,13.97823754]
[1644286873285,2.36961945,117.94,117.81,12.25]
[1644286873485,12.7321,117.91,117.81,3.65516182]
[1644286873685,46.08404703,117.9,117.81,3.65516182]
[1644286873887,4.51644802,117.94,117.81,16.38636182]
[1644286874091,2.40984941,117.95,117.81,28.63636182]
[1644286874284,2.40984941,117.96,117.81,34.63636182]
[1644286874496,0.04022996,117.94,117.81,34.63636182]
[1644286874688,12.7254,117.95,117.81,34.63636182]
[1644286874890,39.46893976,117.94,117.82,47.7836]
[1644286875090,39.50916972,117.94,117.85,12.7265]
[1644286875387,39.46893976,117.94,117.85,16.63166182]
[1644286875989,39.46893976,117.94,117.85,16.38166182]
[1644286876488,39.71893976,117.94,117.85,16.38166182]
[1644286876689,52.44543976,117.94,117.85,16.38166182]
[1644286876888,52.44543976,117.94,117.85,12.7265]
[1644286877288,52.19543976,117.94,117.85,12.9765]
[1644286877894,52.19543976,117.94,117.86,0.40979632]
[1644286878090,52.19543976,117.94,117.85,12.9765]
[1644286878291,52.19543976,117.94,117.85,12.7265]
[1644286878491,54.34226833,117.94,117.82,47.7836]
[1644286878693,56.75211774,117.94,117.82,47.7836]
[1644286878990,54.60528917,117.94,117.83,14.49220284]
[1644286879393,52.23566972,117.94,117.83,14.49220284]
[1644286879794,52.23566972,117.94,117.83,14.74220284]
[1644286880195,58.48566972,117.94,117.82,47.7836]
[1644286880393,60.85528917,117.94,117.82,47.7836]
[1644286881294,63.00211774,117.94,117.79,12.25]
[1644286881492,111.32111774,117.94,117.79,66.8312]
[1644286881692,111.32111774,117.94,117.81,12.731]
[1644286882094,111.32111774,117.94,117.81,12.981]
[1644286882296,111.32111774,117.94,117.81,27.89816638]
[1644286882694,12.7325,117.9,117.81,27.89816638]
[1644286882923,12.7325,117.9,117.81,12.981]
[1644286883325,12.7325,117.9,117.81,0.25]
[1644286883519,12.7325,117.9,117.79,67.0644]
[1644286883720,12.7325,117.9,117.79,67.3144]
[1644286884021,46.56307766,117.86,117.79,67.3144]
[1644286884221,46.56307766,117.86,117.79,18.9832]
[1644286885024,12.7347,117.87,117.79,18.9832]
[1644286885821,37.76840982,117.86,117.79,18.9832]
[1644286886021,50.50360982,117.86,117.79,6.0]
[1644286886221,50.50360982,117.86,117.76,12.25]
[1644286886422,50.50360982,117.86,117.72,12.25]
[1644286886822,52.90043839,117.86,117.72,12.25]
[1644286887021,12.80784601,117.85,117.73,16.56163199]
[1644286887222,38.28418996,117.84,117.73,16.56163199]
[1644286887424,39.69327429,117.81,117.73,16.56163199]
[1644286887627,39.69327429,117.81,117.73,16.81163199]
[1644286888023,42.4734,117.83,117.73,16.81163199]
[1644286888424,88.9504,117.85,117.73,16.81163199]
[1644286888625,88.9504,117.85,117.73,29.55133199]
[1644286888824,46.4835,117.85,117.73,29.55133199]
[1644286889024,36.77923916,117.84,117.73,29.55133199]
[1644286889924,12.7376,117.85,117.73,31.48506596]
[1644286890128,24.6619,117.88,117.74,12.25]
[1644286890325,12.25,117.92,117.78,12.7346]
[1644286890527,63.06794941,117.94,117.78,24.9846]
[1644286890725,12.80181142,117.91,117.79,1.93373397]
[1644286890926,53.47168398,117.9,117.79,14.18373397]
[1644286891127,53.47168398,117.9,117.79,14.43373397]
[1644286891326,53.47168398,117.9,117.79,26.91683397]
[1644286891527,53.72168398,117.9,117.79,12.7331]
[1644286891725,53.72168398,117.9,117.76,14.18373397]
[1644286891924,53.72168398,117.9,117.77,0.25]
[1644286892324,53.72168398,117.9,117.77,2.18373397]
[1644286893125,53.47168398,117.9,117.78,12.25]
[1644286893324,53.47168398,117.9,117.78,12.5]
[1644286893526,59.47168398,117.9,117.78,14.43373397]
[1644286893927,53.47168398,117.9,117.78,14.43373397]
[1644286894327,53.47168398,117.9,117.8,12.7323]
[1644286894527,40.73878398,117.9,117.8,12.7323]
[1644286894727,40.73878398,117.9,117.81,14.18373397]
[1644286895332,40.73878398,117.9,117.81,12.5]
[1644286896531,53.47028398,117.9,117.81,12.731]
[1644286896731,53.72028398,117.9,117.81,12.731]
[1644286896930,53.47028398,117.9,117.81,12.981]
[1644286898533,53.47028398,117.9,117.81,14.9127917]
[1644286900437,53.47028398,117.9,117.81,12.981]
[1644286900734,53.47028398,117.9,117.81,12.731]
[1644286900935,53.47028398,117.9,117.81,12.981]
[1644286901535,12.7315,117.9,117.81,12.981]
[1644286902436,52.99725145,117.9,117.81,12.981]
[1644286903837,12.7315,117.9,117.81,12.981]
[1644286904839,85.89719767,117.92,117.81,14.91830898]
[1644286906141,85.89719767,117.92,117.81,20.91830898]
[1644286906342,85.89719767,117.92,117.81,14.91830898]
[1644286906742,85.89719767,117.92,117.81,20.91830898]
[1644286906943,85.89719767,117.92,117.81,14.91830898]
[1644286907643,37.1719,117.92,117.81,33.16830898]
[1644286908647,74.58708635,117.92,117.81,33.16830898]
[1644286910360,37.1719,117.92,117.81,33.16830898]
[1644286910851,0.04022996,117.93,117.81,33.16830898]
[1644286911346,0.04022996,117.93,117.82,24.9809]
[1644286911546,0.04022996,117.96,117.86,12.7227]
[1644286911746,0.04022996,117.96,117.86,25.2227]
[1644286911945,0.04022996,117.96,117.87,1.93730898]
[1644286912145,45.93138097,117.97,117.87,1.93730898]
[1644286912346,0.04022996,117.96,117.87,0.25]
[1644286912546,0.04022996,117.96,117.86,12.7227]
[1644286912746,48.32820954,117.97,117.86,12.9727]
[1644286912947,0.04022996,117.96,117.86,12.9727]
[1644286913549,12.76492996,117.96,117.86,12.9727]
[1644286913748,35.22145852,117.95,117.86,12.9727]
[1644286915649,47.94755852,117.95,117.86,12.9727]
[1644286918072,47.94755852,117.95,117.84,61.0996]
[1644286918271,50.09438709,117.95,117.82,24.85130898]
[1644286918472,0.04022996,117.94,117.81,90.4681]
[1644286918674,12.7311,117.91,117.81,48.0365]
[1644286918872,47.01976125,117.9,117.81,48.0365]
[1644286919373,42.437,117.93,117.82,12.7308]
[1644286919972,42.437,117.93,117.82,14.91810898]
[1644286920174,46.64659125,117.92,117.82,14.91810898]
[1644286920473,46.64659125,117.92,117.82,12.7308]
[1644286920675,41.66298934,117.89,117.82,12.7308]
[1644286921074,12.7317,117.9,117.82,12.7308]
[1644286922176,12.7317,117.9,117.82,14.66810898]
[1644286922374,12.7317,117.9,117.82,14.91810898]
[1644286925275,60.20806321,117.9,117.82,14.66810898]
[1644286925475,12.7317,117.9,117.82,14.66810898]
[1644286925879,12.7294,117.92,117.82,14.66810898]
[1644286926079,50.39844941,117.94,117.82,32.91810898]
[1644286926280,48.02882996,117.94,117.82,32.91810898]
[1644286926583,91.91048993,117.94,117.82,32.91810898]
[1644286926781,91.91048993,117.94,117.82,33.16810898]
[1644286926981,12.7274,117.93,117.82,33.16810898]
[1644286930585,38.95130069,117.92,117.82,33.16810898]
[1644286935493,51.67950069,117.92,117.82,32.91810898]
[1644286936096,51.92950069,117.92,117.82,32.91810898]
[1644286936798,51.92950069,117.92,117.82,33.16810898]
[1644286937203,38.95130069,117.92,117.82,33.16810898]
[1644286937797,12.7272,117.93,117.82,33.16810898]
[1644286938701,41.66638882,117.96,117.82,33.16810898]
[1644286938898,39.29676937,117.96,117.83,24.4535]
[1644286939101,39.29676937,117.96,117.86,12.7226]
[1644286939299,39.29676937,117.96,117.86,25.2226]
[1644286939598,39.25653941,117.96,117.87,1.93730898]
[1644286939801,39.25653941,117.96,117.87,2.18730898]
[1644286940201,39.25653941,117.96,117.89,12.7236]
[1644286940601,39.25653941,117.96,117.89,12.9736]
[1644286941400,51.98043941,117.96,117.89,12.7236]
[1644286944103,52.23043941,117.96,117.88,12.7259]
[1644286945004,51.98043941,117.96,117.88,12.9759]
[1644286946604,51.98043941,117.96,117.88,18.9759]
[1644286946904,51.98043941,117.96,117.88,12.9759]
[1644286947105,51.98043941,117.96,117.88,12.7259]
[1644286948307,51.98043941,117.96,117.88,12.9759]
[1644286951127,51.98043941,117.96,117.88,12.7259]
[1644286951328,2.14682857,117.95,117.86,12.7272]
[1644286951528,12.7296,117.93,117.76,2.38764654]
[1644286951728,12.7296,117.93,117.77,37.055]
[1644286951729,65.26068315,117.92,117.77,37.055]
[1644286951930,91.8422776,117.92,117.77,24.805]
[1644286952130,2.14682857,117.91,117.75,12.25]
[1644286952331,42.4516,117.89,117.76,12.7375]
[1644286952530,56.10363779,117.88,117.76,12.7375]
[1644286954330,58.25046636,117.88,117.76,12.7375]
[1644286954730,58.25046636,117.88,117.76,18.7375]
[1644286954929,56.10363779,117.88,117.76,18.7375]
[1644286955130,62.10363779,117.88,117.76,18.7375]
[1644286955732,62.10363779,117.88,117.76,18.9875]
[1644286958736,56.35363779,117.88,117.76,18.9875]
[1644286960039,62.35363779,117.88,117.76,18.9875]
[1644286961840,62.35363779,117.88,117.76,6.25]
[1644286962245,64.50046636,117.88,117.75,6.0]
[1644286962441,12.25,117.87,117.75,6.0]
[1644286962642,12.7395,117.84,117.74,29.4994]
[1644286962843,39.96671557,117.83,117.74,29.4994]
[1644286963048,39.96671557,117.83,117.74,42.2391]
[1644286964545,12.7397,117.82,117.74,42.2391]
[1644286965245,12.7397,117.82,117.74,42.4891]
[1644286967951,44.76369531,117.81,117.74,42.4891]
[1644286968954,12.7397,117.82,117.74,42.4891]
[1644286969852,12.7397,117.82,117.74,55.2654]
[1644286970052,47.0403842,117.82,117.74,55.2654]
[1644286973958,12.7397,117.82,117.74,55.2654]
[1644286975959,54.73606224,117.83,117.74,55.2654]
[1644286976160,54.73606224,117.83,117.74,55.2894]
[1644286979785,54.98606224,117.83,117.74,55.2894]
[1644286979986,12.988,117.83,117.74,55.2894]
[1644286980988,60.88649883,117.83,117.74,55.2894]
[1644286981389,60.88649883,117.83,117.74,56.49208539]
[1644286981589,60.88649883,117.83,117.74,55.2894]
[1644286981791,60.88649883,117.83,117.74,56.49208539]
[1644286983092,60.88649883,117.83,117.74,55.2894]
[1644286983292,60.88649883,117.83,117.74,56.49208539]
[1644286983992,60.88649883,117.83,117.74,56.24208539]
[1644286984393,60.88649883,117.83,117.74,55.0394]
[1644286984791,60.88649883,117.83,117.74,77.5771]
[1644286984991,60.88649883,117.83,117.74,78.77978539]
[1644286985292,60.88649883,117.83,117.74,79.02978539]
[1644286993104,12.738,117.83,117.74,79.02978539]
[1644286993306,1.19353905,117.85,117.77,12.7354]
[1644286993505,48.19733905,117.86,117.77,12.7354]
[1644286993705,1.19353905,117.86,117.77,20.21208539]
[1644286993905,1.19353905,117.87,117.78,24.5198]
[1644286994105,47.27431076,117.86,117.78,24.5438]
[1644286994307,12.7355,117.85,117.79,12.7355]
[1644286996809,60.00891076,117.86,117.79,12.7355]
[1644286997711,66.00891076,117.86,117.79,12.7355]
[1644286997911,60.00891076,117.86,117.78,37.2568]
[1644286998216,67.45244981,117.86,117.78,37.2568]
[1644286998410,67.45244981,117.86,117.78,12.737]
[1644286998611,61.45244981,117.86,117.78,12.737]
[1644287001716,60.25891076,117.86,117.78,12.737]
[1644287006841,12.7346,117.86,117.78,12.987]
[1644287010646,12.7327,117.87,117.78,12.987]
[1644287010845,23.4159,117.88,117.78,25.261]
[1644287011045,1.19353905,117.9,117.78,58.06468542]
[1644287011249,1.19353905,117.91,117.82,12.727]
[1644287011445,1.19353905,117.92,117.82,49.8436]
[1644287011747,1.19353905,117.93,117.82,56.0936]
[1644287011945,1.23376901,117.93,117.82,80.5289]
[1644287012146,0.04022996,117.93,117.82,80.5289]
[1644287012747,44.08143947,117.93,117.82,80.5289]
[1644287013652,56.80883947,117.93,117.82,80.5289]
[1644287015450,56.80883947,117.93,117.82,74.5289]
[1644287016151,56.80883947,117.93,117.82,87.5685]
[1644287016354,56.80883947,117.93,117.82,87.3185]
[1644287017651,56.80883947,117.93,117.82,87.5685]
[1644287017852,56.80883947,117.93,117.82,75.0685]
[1644287018052,58.25237852,117.93,117.82,75.0685]
[1644287018652,64.25237852,117.93,117.82,75.0685]
[1644287021254,64.25237852,117.93,117.82,75.3185]
[1644287021855,57.05883947,117.93,117.82,75.3185]
[1644287022054,56.80883947,117.93,117.82,75.3185]
[1644287023357,58.00237852,117.93,117.82,75.3185]
[1644287023559,64.00237852,117.93,117.82,75.3185]
[1644287024159,64.25237852,117.93,117.82,75.0685]
[1644287025261,64.25237852,117.93,117.82,75.3185]
[1644287026060,58.00237852,117.93,117.82,93.5685]
[1644287026261,56.80883947,117.93,117.82,93.5685]
[1644287026860,0.04022996,117.93,117.82,93.5685]
[1644287036992,0.04022996,117.93,117.83,1.20268539]
[1644287037291,2.36961945,118.02,117.88,12.7214]
[1644287037491,2.50835257,118.04,117.89,37.1931]
[1644287037792,0.04025474,118.03,117.95,1.23376901]
[1644287037991,0.13873312,118.04,117.96,12.25]
[1644287038194,0.13873312,118.04,117.97,12.25]
[1644287038393,0.13873312,118.04,117.97,40.1464797]
[1644287038591,0.13873312,118.04,117.98,1.93229615]
[1644287038794,0.13873312,118.04,117.98,14.43229615]
[1644287038991,0.13873312,118.04,117.98,18.5]
[1644287039195,0.13873312,118.04,117.98,18.25]
[1644287039395,0.13873312,118.04,117.98,6.0]
[1644287039594,0.13873312,118.04,117.98,0.25]
[1644287039791,0.13873312,118.04,117.99,12.71]
[1644287040194,0.13873312,118.04,117.99,18.96]
[1644287040393,0.13873312,118.04,117.99,12.71]
[1644287040595,2.28556169,118.04,117.95,12.25]
[1644287040793,42.5919132,118.03,117.95,12.7162]
[1644287040995,0.13873312,118.04,117.95,12.7162]
[1644287041192,0.13873312,118.04,117.95,33.15390487]
[1644287041994,0.13873312,118.04,117.95,31.2162]
[1644287042191,0.13873312,118.04,117.95,25.2162]
[1644287042394,0.13873312,118.04,117.95,12.7162]
[1644287044195,12.13319936,118.05,117.95,12.7162]
[1644287044794,12.13319936,118.05,118.02,0.79085661]
[1644287044996,43.2590248,118.03,118.02,0.79085661]
[1644287048001,49.2590248,118.03,118.02,0.79085661]
[1644287048299,49.5090248,118.03,118.02,0.79085661]
[1644287052805,49.5090248,118.03,117.93,18.9683]
[1644287053004,62.26877954,118.03,117.93,18.9683]
[1644287056210,62.26877954,118.03,117.93,33.01005854]
[1644287058215,62.26877954,118.03,117.93,18.9683]
[1644287059215,62.26877954,118.03,117.94,14.24127222]
[1644287059414,62.2285248,118.03,117.94,14.24127222]
[1644287059616,0.31772098,118.04,117.94,32.95927222]
[1644287059817,0.31772098,118.04,117.95,1.93741015]
[1644287060019,0.27746624,118.04,117.95,1.93741015]
[1644287060217,0.27746624,118.04,117.95,8.18741015]
[1644287060419,0.27746624,118.04,117.95,6.0]
[1644287060617,0.27746624,118.04,117.93,14.18741015]
[1644287060818,0.31772098,118.04,117.93,14.43741015]
[1644287061418,40.89030116,118.04,117.93,32.10789389]
[1644287061620,53.60810116,118.04,117.94,12.7178]
[1644287063123,59.60810116,118.04,117.94,12.7178]
[1644287063324,59.85810116,118.04,117.94,12.7178]
[1644287064335,53.85810116,118.04,117.95,12.43139836]
[1644287064525,53.81784642,118.04,117.95,12.717]
[1644287064927,53.56784642,118.04,117.95,12.717]
[1644287065727,53.56784642,118.04,117.95,12.967]
[1644287066127,53.56784642,118.04,117.95,12.717]
[1644287066729,53.56784642,118.04,117.95,12.967]
[1644287066929,59.56784642,118.04,117.95,12.967]
[1644287067127,59.81784642,118.04,117.95,12.717]
[1644287067328,61.96467499,118.04,117.93,2.5457086]
[1644287067527,64.33429444,118.04,117.93,2.5457086]
[1644287067930,64.37462314,118.04,117.93,2.5457086]
[1644287068427,76.62462314,118.04,117.93,2.5457086]
[1644287069027,75.62462314,118.04,117.93,2.5457086]
[1644287069428,2.39709968,118.03,117.93,2.5457086]
[1644287069627,37.48822173,118.02,117.93,2.5457086]
[1644287069828,12.7222,118.0,117.93,2.5457086]
[1644287070228,12.2222,118.0,117.93,2.5457086]
[1644287070747,36.63320771,117.99,117.93,2.5457086]
[1644287070947,44.28035133,117.97,117.93,2.5457086]
[1644287071950,50.28035133,117.97,117.93,2.5457086]
[1644287072150,50.53035133,117.97,117.93,2.5457086]
[1644287072652,12.726,117.96,117.93,2.5457086]
[1644287073451,3.03059896,117.95,117.93,2.5457086]
[1644287079558,41.84453044,117.94,117.93,2.5457086]
[1644287080257,3.03059896,117.95,117.93,2.5457086]
[1644287081458,0.48489036,117.95,117.89,12.7245]
[1644287081657,0.48489036,117.95,117.88,24.59381015]
[1644287081658,13.23189036,117.95,117.88,24.59381015]
[1644287081858,25.95839036,117.95,117.86,23.1318]
[1644287082064,28.10521893,117.95,117.86,29.1318]
[1644287082257,28.35521893,117.95,117.86,29.1318]
[1644287082661,38.01186456,117.94,117.86,23.1318]
[1644287082857,12.7296,117.92,117.86,23.1318]
[1644287083060,54.63858538,117.92,117.86,23.1318]
[1644287083661,54.63858538,117.92,117.85,13.7365688]
[1644287083860,54.63858538,117.92,117.84,35.5597]
[1644287085566,54.63858538,117.92,117.84,35.8097]
[1644287087161,54.63858538,117.92,117.84,35.5597]
[1644287087861,60.63858538,117.92,117.84,35.5597]
[1644287088360,60.88858538,117.92,117.84,35.5597]
[1644287089262,60.88858538,117.92,117.84,37.46089989]
[1644287089962,18.7296,117.92,117.84,37.46089989]
[1644287090164,12.7279,117.93,117.84,39.64831004]
[1644287090962,35.12186459,117.92,117.84,37.71089989]
[1644287091164,12.7305,117.91,117.84,37.46089989]
[1644287091461,12.7305,117.91,117.87,1.7376891]
[1644287091662,65.463,117.94,117.87,1.7376891]
[1644287091865,23.0283,117.94,117.87,1.7376891]
[1644287092663,12.729,117.92,117.87,1.7376891]
[1644287093562,18.979,117.92,117.87,1.7376891]
[1644287093765,12.979,117.92,117.87,1.7376891]
[1644287094063,18.979,117.92,117.87,1.7376891]
[1644287094565,65.01626723,117.92,117.87,1.7376891]
[1644287095962,18.729,117.92,117.87,1.7376891]
[1644287096165,12.729,117.92,117.87,1.7376891]
[1644287096465,12.7279,117.93,117.87,1.7376891]
[1644287097665,12.7312,117.91,117.87,1.7376891]
[1644287097866,34.21928581,117.9,117.87,1.7376891]
[1644287098068,3.33406421,117.89,117.87,1.7376891]
[1644287102470,16.06606421,117.89,117.84,22.8297]
[1644287102770,16.06606421,117.89,117.79,0.024]
[1644287102972,41.03749278,117.89,117.78,46.5796]
[1644287103272,41.03749278,117.89,117.79,0.024]
[1644287103471,43.04598706,117.88,117.79,14.80313708]
[1644287103771,12.735,117.86,117.79,33.53883708]
[1644287103973,53.16453314,117.86,117.79,33.51483708]
[1644287104170,53.41453314,117.86,117.79,18.7357]
[1644287104774,12.985,117.86,117.79,18.7357]
[1644287105773,12.985,117.86,117.79,33.59703559]
[1644287106374,12.735,117.86,117.79,33.59703559]
[1644287107073,12.735,117.86,117.79,33.84703559]
[1644287109280,12.7342,117.87,117.79,33.84703559]
[1644287109479,42.4479,117.9,117.79,33.87103559]
[1644287109679,6.0,117.9,117.8,24.9438]
[1644287109880,6.0,117.9,117.83,12.7306]
[1644287110079,28.6002,117.91,117.83,12.7306]
[1644287110278,28.6002,117.91,117.83,12.9806]
[1644287110480,77.05993452,117.91,117.83,16.21947258]
[1644287111179,71.30993452,117.91,117.83,15.96947258]
[1644287111382,71.30993452,117.91,117.83,16.21947258]
[1644287111602,12.731,117.9,117.83,15.96947258]
[1644287111781,12.731,117.9,117.83,12.7306]
[1644287112782,46.33636336,117.89,117.83,12.7306]
[1644287112984,12.731,117.9,117.83,12.7306]
[1644287113584,18.731,117.9,117.83,12.7306]
[1644287113982,65.59789228,117.9,117.83,12.7306]
[1644287114783,65.84789228,117.9,117.83,12.7306]
[1644287114986,59.84789228,117.9,117.83,12.7306]
[1644287115583,65.84789228,117.9,117.83,12.7306]
[1644287118486,65.84789228,117.9,117.82,36.5468]
[1644287118689,65.84789228,117.9,117.82,23.8143]
[1644287118888,65.84789228,117.9,117.8,0.024]
[1644287119118,12.736,117.87,117.8,0.024]
[1644287119310,12.736,117.87,117.79,24.4991]
[1644287119511,34.81468748,117.86,117.79,24.4991]
[1644287119911,40.81468748,117.86,117.79,24.4991]
[1644287120111,12.7361,117.85,117.79,24.4991]
[1644287124217,34.36973802,117.84,117.79,24.4991]
[1644287124415,47.10683802,117.84,117.79,24.4991]
[1644287124617,12.7371,117.84,117.79,24.4991]
[1644287126617,12.7371,117.84,117.79,28.6820896]
[1644287126820,24.1168,117.87,117.79,28.6820896]
[1644287127118,23.3823,117.9,117.8,1.93752408]
[1644287127318,23.3823,117.9,117.8,14.43752408]
[1644287127518,23.3823,117.9,117.8,12.5]
[1644287127718,38.48636399,117.89,117.8,12.5]
[1644287127921,38.48636399,117.89,117.81,24.3355]
[1644287128118,38.48636399,117.89,117.81,38.25271857]
[1644287128519,12.7326,117.88,117.82,12.7323]
[1644287129518,6.0,117.89,117.82,12.7323]
[1644287129719,6.0,117.89,117.82,14.91982408]
[1644287130020,61.75273869,117.9,117.82,14.91982408]
[1644287130625,67.75273869,117.9,117.82,14.91982408]
[1644287130822,68.00273869,117.9,117.82,12.9823]
[1644287131524,80.73333869,117.9,117.82,12.9823]
[1644287131822,42.3629,117.9,117.83,4.1829896]
[1644287132023,29.3823,117.9,117.84,12.7304]
[1644287132225,23.3823,117.9,117.84,18.9804]
[1644287132421,23.3823,117.9,117.84,20.91792408]
[1644287132622,23.3823,117.9,117.84,18.9804]
[1644287132823,48.52975693,117.91,117.84,18.9804]
[1644287133224,48.52975693,117.91,117.84,12.9804]
[1644287134521,12.729,117.92,117.84,12.9804]
[1644287134722,12.729,117.92,117.84,36.5239]
[1644287135525,58.03613636,117.92,117.84,36.5239]
[1644287135727,58.28613636,117.92,117.84,36.5239]
[1644287136123,58.28613636,117.92,117.84,36.2739]
[1644287136925,58.28613636,117.92,117.84,36.5239]
[1644287137623,64.28613636,117.92,117.84,36.5239]
[1644287142427,64.28613636,117.92,117.84,36.2739]
[1644287145231,58.28613636,117.92,117.84,36.5239]
[1644287145933,58.03613636,117.92,117.84,36.5239]
[1644287149134,64.03613636,117.92,117.84,36.5239]
[1644287149733,64.28613636,117.92,117.84,36.5239]
[1644287151039,58.28613636,117.92,117.84,36.5239]
[1644287152337,58.28613636,117.92,117.85,13.21627991]
[1644287152536,12.979,117.92,117.85,25.94517991]
[1644287155140,18.979,117.92,117.85,25.94517991]
[1644287155844,16.80677672,117.97,117.85,25.94517991]
[1644287155845,46.97937672,117.97,117.85,26.19517991]
[1644287156042,23.3369,117.96,117.88,12.7259]
[1644287156244,36.20185801,117.96,117.89,22.5438]